fUSD/lending_fUSD_20250209
["ID","MTS","AMOUNT","RATE_DAILY","PERIOD"]
[352470771,1739128249419,-500.0,0.00010136,2]
[352470772,1739128249430,-500.0,0.00010136,2]
[352470773,1739128249440,-500.0,0.00010136,2]
[352470774,1739128249451,-500.0,0.00010136,2]
[352470775,1739128249461,-500.0,0.00010136,2]
[352470776,1739128249470,-500.0,0.00010136,2]
[352470777,1739128249479,-566.19,0.00010136,2]
[352470778,1739128249489,-500.0,0.00010136,2]
[352470779,1739128249499,-588.63,0.00010136,2]
[352470780,1739128249509,-500.0,0.00010136,2]
[352470781,1739128249518,-2274.57,0.00010136,2]
[352470782,1739128249528,-610.86,0.00010136,2]
[352470783,1739128249537,-500.0,0.00010136,2]
[352470784,1739128249547,-500.0,0.00010136,2]
[352470785,1739128249556,-557.4,0.00010136,2]
[352470786,1739128249566,-506.57518671,0.00010136,2]
[352470787,1739128249576,-500.0,0.00010136,2]
[352470788,1739128249586,-500.0,0.00010136,2]
[352470789,1739128249595,-500.0,0.00010136,2]
[352470790,1739128249605,-500.0,0.00010136,2]
[352470791,1739128249615,-500.0,0.00010136,2]
[352470792,1739128249625,-500.0,0.00010136,2]
[352470793,1739128249636,-500.0,0.00010136,2]
[352470794,1739128249645,-210.39,0.00010137,2]
[352470795,1739128249654,-306.58,0.00010137,2]
[352470796,1739128249664,-158.15,0.00010137,2]
[352470797,1739128249674,-150.0,0.00010146,2]
[352470798,1739128249684,-215.22,0.00010151,2]
[352470799,1739128249693,-150.0,0.00010199,2]
[352470800,1739128249704,-500.0,0.00010219,2]
[352470801,1739128249713,-39618.0,0.00010247,2]
[352470802,1739128249723,-1204.34553652,0.00010269,3]
[352470803,1739128249732,-299.44,0.00010272,2]
[352470804,1739128249742,-500.0,0.00010272,2]
[352470805,1739128249751,-500.0,0.00010272,2]
[352470806,1739128249760,-500.0,0.00010272,2]
[352470807,1739128249770,-208.04743106,0.00010272,2]
[352470808,1739128249779,-276.45,0.00010272,2]
[352470809,1739128249788,-340.29,0.00010272,2]
[352470811,1739128249798,-500.0,0.00010272,2]
[352470813,1739128249807,-500.0,0.00010272,2]
[352470815,1739128249817,-500.0,0.00010272,2]
[352470817,1739128249826,-500.0,0.00010272,2]
[352470819,1739128249836,-639.13,0.00010272,2]
[352470821,1739128249846,-500.0,0.00010272,2]
[352470823,1739128249856,-297.8,0.00010272,2]
[352470825,1739128249865,-500.0,0.00010272,2]
[352470827,1739128249875,-542.72812166,0.00010272,2]
[352470829,1739128249886,-559.72,0.00010272,2]
[352470831,1739128249896,-442.58,0.00010272,2]
[352470833,1739128249905,-500.0,0.00010272,2]
[352470835,1739128249915,-438.34,0.00010272,2]
[352470837,1739128249925,-562.37,0.00010272,2]
[352470839,1739128249935,-500.0,0.00010272,2]
[352470841,1739128249944,-500.0,0.00010272,2]
[352470843,1739128249953,-500.0,0.00010272,2]
[352470845,1739128249963,-500.0,0.00010272,2]
[352470847,1739128249972,-500.0,0.00010272,2]
[352470849,1739128249982,-164.53,0.00010272,2]
[352470851,1739128249991,-500.0,0.00010272,2]
[352470853,1739128250000,-500.0,0.00010272,2]
[352470855,1739128250010,-381.451289,0.00010272,2]
[352470857,1739128250020,-500.0,0.00010272,2]
[352470859,1739128250029,-500.0,0.00010272,2]
[352470861,1739128250038,-466.86,0.00010272,2]
[352470863,1739128250047,-439.862432,0.00010272,2]
[352470865,1739128250057,-500.0,0.00010272,2]
[352470867,1739128250066,-500.0,0.00010272,2]
[352470869,1739128250077,-500.0,0.00010272,2]
[352470871,1739128250089,-500.0,0.00010272,2]
[352470873,1739128250099,-219.23,0.00010272,2]
[352470875,1739128250108,-500.0,0.00010272,2]
[352470876,1739128250123,-500.0,0.00010272,2]
[352470878,1739128250133,-500.0,0.00010272,2]
[352470880,1739128250143,-500.0,0.00010272,2]
[352470882,1739128250152,-500.0,0.00010272,2]
[352470884,1739128250163,-599.16,0.00010272,2]
[352470886,1739128250172,-984.83,0.00010272,2]
[352470888,1739128250181,-500.0,0.00010272,2]
[352470890,1739128250192,-316.77,0.00010272,2]
[352470892,1739128250202,-500.0,0.00010272,2]
[352470894,1739128250211,-500.0,0.00010272,2]
[352470896,1739128250221,-500.0,0.00010272,2]
[352470898,1739128250231,-500.0,0.00010272,2]
[352470900,1739128250240,-500.0,0.00010272,2]
[352470902,1739128250249,-710.38,0.00010272,2]
[352470904,1739128250259,-488.18,0.00010272,2]
[352470906,1739128250268,-500.0,0.00010272,2]
[352470908,1739128250277,-579.25,0.00010272,2]
[352470910,1739128250287,-617.79,0.00010272,2]
[352470912,1739128250296,-500.0,0.00010272,2]
[352470914,1739128250306,-500.0,0.00010272,2]
[352470916,1739128250315,-500.0,0.00010272,2]
[352470918,1739128250324,-500.0,0.00010272,2]
[352470920,1739128250334,-741.64,0.00010272,2]
[352470922,1739128250343,-500.0,0.00010272,2]
[352470924,1739128250353,-500.0,0.00010272,2]
[352470925,1739128250362,-500.0,0.00010272,2]
[352470926,1739128250371,-500.0,0.00010272,2]
[352470927,1739128250379,-500.0,0.00010272,2]
[352470928,1739128250388,-500.0,0.00010272,2]
[352470929,1739128250397,-812.34,0.00010272,2]
[352470930,1739128250406,-617.98,0.00010272,2]
[352470931,1739128250415,-500.0,0.00010272,2]
[352470932,1739128250424,-500.0,0.00010272,2]
[352470933,1739128250433,-500.0,0.00010272,2]
[352470935,1739128250443,-500.0,0.00010272,2]
[352470936,1739128250452,-500.0,0.00010272,2]
[352470938,1739128250461,-500.0,0.00010272,2]
[352470940,1739128250471,-500.0,0.00010272,2]
[352470942,1739128250480,-500.0,0.00010272,2]
[352470944,1739128250490,-515.11,0.00010272,2]
[352470946,1739128250499,-500.0,0.00010272,2]
[352470948,1739128250509,-500.0,0.00010272,2]
[352470949,1739128250518,-581.97,0.00010272,2]
[352470951,1739128250528,-500.0,0.00010272,2]
[352470953,1739128250537,-500.0,0.00010272,2]
[352470955,1739128250547,-1578.3,0.00010272,2]
[352470957,1739128250556,-500.0,0.00010272,2]
[352470958,1739128250565,-500.0,0.00010272,2]
[352470960,1739128250575,-500.0,0.00010272,2]
[352470962,1739128250584,-500.0,0.00010272,2]
[352470964,1739128250594,-685.55,0.00010272,2]
[352470965,1739128250603,-736.33,0.00010272,2]
[352470967,1739128250612,-500.0,0.00010273,2]
[352470968,1739128250621,-500.0,0.00010273,2]
[352470970,1739128250631,-1044.91,0.00010273,2]
[352470972,1739128250640,-500.0,0.00010273,2]
[352470974,1739128250649,-500.0,0.00010273,2]
[352470976,1739128250660,-500.0,0.00010273,2]
[352470978,1739128250669,-791.36,0.00010273,2]
[352470980,1739128250679,-500.0,0.00010273,2]
[352470982,1739128250688,-500.0,0.00010273,2]
[352470984,1739128250699,-500.0,0.00010273,2]
[352470986,1739128250708,-500.0,0.00010273,2]
[352470988,1739128250718,-500.0,0.00010273,2]
[352470990,1739128250727,-500.0,0.00010273,2]
[352470992,1739128250735,-500.0,0.00010273,2]
[352470994,1739128250744,-500.0,0.00010273,2]
[352470996,1739128250754,-500.0,0.00010273,2]
[352470998,1739128250763,-500.0,0.00010273,2]
[352471000,1739128250773,-500.0,0.00010273,2]
[352471002,1739128250783,-500.0,0.00010273,2]
[352471004,1739128250792,-500.0,0.00010273,2]
[352471006,1739128250802,-500.0,0.00010273,2]
[352471008,1739128250811,-500.0,0.00010273,2]
[352471010,1739128250821,-500.0,0.00010273,2]
[352471011,1739128250830,-295.95,0.00010273,2]
[352471013,1739128250840,-500.0,0.00010273,2]
[352471015,1739128250850,-500.0,0.00010273,2]
[352471017,1739128250860,-500.0,0.00010273,2]
[352471019,1739128250869,-500.0,0.00010273,2]
[352471022,1739128250880,-500.0,0.00010273,2]
[352471024,1739128250890,-624.0,0.00010273,2]
[352471026,1739128250900,-500.0,0.00010273,2]
[352471027,1739128250909,-500.0,0.00010273,2]
[352471029,1739128250919,-505.04,0.00010273,2]
[352471031,1739128250929,-500.0,0.00010273,2]
[352471034,1739128250939,-500.0,0.00010273,2]
[352471035,1739128250949,-640.06,0.00010273,2]
[352471037,1739128250958,-517.77,0.00010273,2]
[352471039,1739128250968,-338.99209546,0.00010273,2]
[352471053,1739128251165,-183.98790454,0.00010273,2]
[352471055,1739128251175,-721.71,0.00010273,2]
[352471056,1739128251185,-375.67800267,0.00010273,2]
[352471072,1739128251427,-500.0,9.998e-05,2]
[352471074,1739128251438,-50.47454728,9.999e-05,2]
[352471077,1739128251466,-449.52545272,9.999e-05,2]
[352471079,1739128251476,-500.0,9.999e-05,2]
[352471080,1739128251486,-500.0,0.00010135,2]
[352471082,1739128251496,-500.0,0.00010136,2]
[352471084,1739128251506,-500.0,0.00010272,2]
[352471085,1739128251516,-124.32199733,0.00010273,2]
[352471087,1739128251526,-976.55,0.00010273,2]
[352471089,1739128251536,-2074.23,0.00010273,2]
[352471090,1739128251545,-301.45701771,0.00010273,2]
[352471119,1739128839108,1000.0,8.501e-05,2]
[352471120,1739128958165,-162.55,8.508e-05,2]
[352471121,1739128958187,-236.95585813,8.578e-05,2]
[352471122,1739128958209,-3500.0,8.578e-05,2]
[352471123,1739128958231,-1400.0,8.578e-05,2]
[352471124,1739128958253,-3800.0,8.578e-05,2]
[352471125,1739128958276,-900.49414187,8.836e-05,2]
[352471126,1739128968249,841.32,8.219e-05,2]
[352471127,1739129055796,-3300.0,8.578e-05,2]
[352471128,1739129055817,-1300.0,8.578e-05,2]
[352471129,1739129055838,-3500.0,8.578e-05,2]
[352471130,1739129055860,-70.12655813,8.836e-05,2]
[352471131,1739129062921,250.0,8.599e-05,2]
[352471132,1739129130446,1579.87344187,8.429e-05,2]
[352471133,1739129130473,420.12655813,8.429e-05,2]
[352471134,1739129229276,625.02,8.419e-05,2]
[352471135,1739129306174,382.66,8.43e-05,2]
[352471138,1739129327076,1671.62198374,0.0002,120]
[352471146,1739129432058,-1944.6488,8.973e-05,2]
[352471147,1739129432068,-308.54,9.202e-05,2]
[352471148,1739129432077,-308.54,9.205e-05,2]
[352471149,1739129432087,-308.54,9.207e-05,2]
[352471150,1739129432097,-308.54,9.209e-05,2]
[352471151,1739129432107,-2015.27144365,9.21e-05,2]
[352471152,1739129432116,-2000.0,9.211e-05,2]
[352471153,1739129432126,-308.54,9.212e-05,2]
[352471154,1739129432137,-308.54,9.214e-05,2]
[352471155,1739129432147,-308.54,9.217e-05,2]
[352471156,1739129432156,-308.54,9.219e-05,2]
[352471157,1739129432166,-308.54,9.222e-05,2]
[352471158,1739129432176,-308.54,9.224e-05,2]
[352471159,1739129432186,-308.54,9.226e-05,2]
[352471160,1739129432195,-308.54,9.229e-05,2]
[352471161,1739129432205,-1000.0,9.231e-05,2]
[352471162,1739129432214,-308.54,9.231e-05,2]
[352471163,1739129432224,-308.54,9.234e-05,2]
[352471164,1739129432233,-308.54,9.236e-05,2]
[352471165,1739129432242,-308.54,9.238e-05,2]
[352471166,1739129432252,-308.54,9.241e-05,2]
[352471167,1739129432261,-308.54,9.243e-05,2]
[352471168,1739129432271,-308.54,9.246e-05,2]
[352471169,1739129432280,-308.54,9.248e-05,2]
[352471170,1739129432290,-500.0,9.282e-05,2]
[352471171,1739129432299,-1500.0,9.365e-05,2]
[352471172,1739129432309,-220.42,9.394e-05,2]
[352471173,1739129432318,-438.77,9.478e-05,2]
[352471174,1739129432327,-382.66,9.484e-05,2]
[352471175,1739129432337,-500.0,9.562e-05,2]
[352471176,1739129432346,-438.77,9.578e-05,2]
[352471177,1739129432356,-265.04,9.578e-05,2]
[352471178,1739129432365,-178.0,9.873e-05,2]
[352471179,1739129432374,-1749.0,9.9e-05,2]
[352471180,1739129432383,-3300.0,9.948e-05,2]
[352471181,1739129432393,-1300.0,9.948e-05,2]
[352471182,1739129432402,-3500.0,9.948e-05,2]
[352471183,1739129432411,-500.0,9.998e-05,2]
[352471184,1739129432423,-500.0,9.998e-05,2]
[352471185,1739129432432,-500.0,9.998e-05,2]
[352471186,1739129432442,-500.0,9.998e-05,2]
[352471187,1739129432451,-500.0,9.998e-05,2]
[352471188,1739129432460,-500.0,9.998e-05,2]
[352471189,1739129432473,-500.0,9.998e-05,2]
[352471190,1739129432483,-172.51,9.998e-05,2]
[352471191,1739129432492,-500.0,9.998e-05,2]
[352471192,1739129432503,-500.0,9.998e-05,2]
[352471193,1739129432513,-514.81,9.998e-05,2]
[352471194,1739129432523,-500.0,9.998e-05,2]
[352471195,1739129432532,-500.0,9.998e-05,2]
[352471196,1739129432543,-500.0,9.998e-05,2]
[352471197,1739129432553,-500.0,9.998e-05,2]
[352471198,1739129432562,-500.0,9.998e-05,2]
[352471199,1739129432571,-500.0,9.998e-05,2]
[352471200,1739129432582,-500.0,9.998e-05,2]
[352471201,1739129432592,-500.0,9.998e-05,2]
[352471202,1739129432603,-500.0,9.998e-05,2]
[352471203,1739129432612,-500.0,9.998e-05,2]
[352471204,1739129432621,-500.0,9.998e-05,2]
[352471205,1739129432630,-498.85706264,9.999e-05,2]
[352471206,1739129432639,-500.0,9.999e-05,2]
[352471207,1739129432649,-500.0,9.999e-05,2]
[352471208,1739129432659,-500.0,9.999e-05,2]
[352471209,1739129432668,-499.21355041,9.999e-05,2]
[352471210,1739129432880,-0.78644959,9.999e-05,2]
[352471211,1739129432890,-500.0,9.999e-05,2]
[352471212,1739129432899,-500.0,9.999e-05,2]
[352471213,1739129432908,-340.46355043,9.999e-05,2]
[352471214,1739129432920,-159.53644957,9.999e-05,2]
[352471215,1739129432930,-318.46355043,9.999e-05,2]
[352471216,1739129432942,-181.53644957,9.999e-05,2]
[352471217,1739129432951,-507.5316692,9.999e-05,2]
[352471218,1739129432960,-292.76730922,9.999e-05,2]
[352471219,1739129432983,-207.23269078,9.999e-05,2]
[352471220,1739129432992,-362.41759235,9.999e-05,2]
[352471225,1739129437897,-137.58240765,9.999e-05,2]
[352471226,1739129437907,-500.0,9.999e-05,2]
[352471227,1739129437918,-500.0,9.999e-05,2]
[352471228,1739129437928,-500.0,9.999e-05,2]
[352471229,1739129437937,-500.0,9.999e-05,2]
[352471230,1739129437948,-500.0,9.999e-05,2]
[352471231,1739129437957,-500.0,9.999e-05,2]
[352471232,1739129437968,-500.0,9.999e-05,2]
[352471233,1739129437978,-500.0,9.999e-05,2]
[352471234,1739129437988,-500.0,9.999e-05,2]
[352471235,1739129437997,-609.26,9.999e-05,2]
[352471236,1739129438007,-500.0,9.999e-05,2]
[352471237,1739129438016,-500.0,9.999e-05,2]
[352471238,1739129438026,-500.0,9.999e-05,2]
[352471239,1739129438035,-506.84,9.999e-05,2]
[352471240,1739129438044,-500.0,9.999e-05,2]
[352471241,1739129438053,-500.0,9.999e-05,2]
[352471242,1739129438063,-361.48,9.999e-05,2]
[352471243,1739129438072,-500.0,9.999e-05,2]
[352471244,1739129438081,-500.0,9.999e-05,2]
[352471245,1739129438091,-500.0,9.999e-05,2]
[352471246,1739129438101,-500.0,9.999e-05,2]
[352471247,1739129438110,-500.0,9.999e-05,2]
[352471248,1739129438119,-386.07649234,9.999e-05,2]
[352471249,1739129438131,-113.92350766,9.999e-05,2]
[352471250,1739129438140,-500.0,9.999e-05,2]
[352471251,1739129438149,-670.36,9.999e-05,2]
[352471252,1739129438160,-738.5,9.999e-05,2]
[352471253,1739129438171,-500.0,9.999e-05,2]
[352471254,1739129438183,-500.0,9.999e-05,2]
[352471255,1739129438192,-551.97,9.999e-05,2]
[352471256,1739129438201,-500.0,9.999e-05,2]
[352471257,1739129438211,-500.0,9.999e-05,2]
[352471258,1739129438220,-575.7,9.999e-05,2]
[352471259,1739129438230,-500.0,9.999e-05,2]
[352471260,1739129438239,-500.0,9.999e-05,2]
[352471261,1739129438248,-171.24,9.999e-05,2]
[352471262,1739129438258,-500.0,9.999e-05,2]
[352471263,1739129438268,-500.0,9.999e-05,2]
[352471264,1739129438277,-500.0,9.999e-05,2]
[352471265,1739129438287,-187.37,9.999e-05,2]
[352471266,1739129438296,-439.862432,9.999e-05,2]
[352471267,1739129438306,-500.0,9.999e-05,2]
[352471268,1739129438315,-500.0,9.999e-05,2]
[352471269,1739129438324,-502.57357539,9.999e-05,2]
[352471270,1739129438333,-599.85,9.999e-05,2]
[352471271,1739129438343,-500.0,9.999e-05,2]
[352471272,1739129438352,-500.0,9.999e-05,2]
[352471273,1739129438362,-309.71,9.999e-05,2]
[352471274,1739129438371,-500.0,9.999e-05,2]
[352471275,1739129438380,-500.0,9.999e-05,2]
[352471276,1739129438390,-500.0,9.999e-05,2]
[352471277,1739129438399,-500.0,9.999e-05,2]
[352471278,1739129438409,-500.0,9.999e-05,2]
[352471280,1739129438419,-500.0,9.999e-05,2]
[352471282,1739129438429,-500.0,9.999e-05,2]
[352471284,1739129438439,-500.0,9.999e-05,2]
[352471286,1739129438448,-500.0,9.999e-05,2]
[352471287,1739129438457,-500.0,9.999e-05,2]
[352471289,1739129438467,-500.0,9.999e-05,2]
[352471290,1739129438477,-500.0,9.999e-05,2]
[352471292,1739129438486,-500.0,9.999e-05,2]
[352471294,1739129438495,-500.0,9.999e-05,2]
[352471297,1739129438509,-500.0,9.999e-05,2]
[352471299,1739129438518,-500.0,9.999e-05,2]
[352471300,1739129438528,-500.0,9.999e-05,2]
[352471302,1739129438537,-500.0,9.999e-05,2]
[352471305,1739129438547,-500.0,9.999e-05,2]
[352471307,1739129438557,-500.0,9.999e-05,2]
[352471308,1739129438566,-500.0,9.999e-05,2]
[352471310,1739129438576,-500.0,9.999e-05,2]
[352471312,1739129438588,-393.49358433,9.999e-05,2]
[352471314,1739129438597,-500.0,9.999e-05,2]
[352471317,1739129438607,-210.93304077,0.0001,2]
[352471319,1739129438617,-8058.64860606,0.0001,2]
[352471320,1739129438627,-48551.02100968,0.0001,2]
[352471467,1739129440099,-547.93,9.999e-05,2]
[352471469,1739129440109,-955.95069587,0.0001,2]
[352471471,1739129440120,-1898.39,0.0001,2]
[352472020,1739129446123,-500.0,9.999e-05,2]
[352472021,1739129446134,-500.0,9.999e-05,2]
[352472022,1739129446147,-500.0,9.999e-05,2]
[352472023,1739129446159,-500.0,9.999e-05,2]
[352472024,1739129446169,-500.0,9.999e-05,2]
[352472025,1739129446180,-500.0,9.999e-05,2]
[352472026,1739129446190,-500.0,9.999e-05,2]
[352472027,1739129446200,-5705.83948888,0.0001,2]
[352472151,1739129899517,799.25,8.219e-05,2]
[352472153,1739130301341,-3000.0,8.578e-05,2]
[352472154,1739130301362,-1200.0,8.578e-05,2]
[352472166,1739130632213,-301.1,8.58e-05,2]
[352472167,1739130632223,-9990.0,8.595e-05,2]
[352472168,1739130632232,-150.0,9e-05,2]
[352472169,1739130632242,-150.0,9e-05,2]
[352472170,1739130632251,-150.0,9e-05,2]
[352472171,1739130632260,-150.0,9e-05,2]
[352472172,1739130632270,-150.0,9.045e-05,2]
[352472173,1739130632279,-150.0,9.091e-05,2]
[352472174,1739130632289,-150.0,9.111e-05,2]
[352472175,1739130632298,-176.33,9.119e-05,2]
[352472176,1739130632307,-2000.0,9.121e-05,2]
[352472177,1739130632317,-500.0,9.126e-05,2]
[352472178,1739130632326,-150.0,9.136e-05,2]
[352472179,1739130632335,-312.51,9.181e-05,2]
[352472180,1739130632344,-150.0,9.182e-05,2]
[352472181,1739130632354,-150.0,9.2e-05,2]
[352472182,1739130632362,-150.0,9.222e-05,2]
[352472183,1739130632371,-150.0,9.227e-05,2]
[352472184,1739130632381,-1000.0,9.234e-05,2]
[352472185,1739130632390,-150.0,9.273e-05,2]
[352472186,1739130632399,-150.0,9.288e-05,2]
[352472187,1739130632409,-159.41,9.304e-05,2]
[352472188,1739130632419,-500.0,9.315e-05,2]
[352472189,1739130632427,-150.0,9.318e-05,2]
[352472190,1739130632437,-150.0,9.333e-05,2]
[352472191,1739130632446,-150.0,9.364e-05,2]
[352472192,1739130632455,-150.0,9.4e-05,2]
[352472193,1739130632464,-150.0,9.409e-05,2]
[352472194,1739130632474,-500.0,9.436e-05,2]
[352472195,1739130632483,-150.0,9.444e-05,2]
[352472196,1739130632492,-150.0,9.455e-05,2]
[352472197,1739130632501,-150.0,9.5e-05,2]
[352472198,1739130632511,-150.0,9.545e-05,2]
[352472199,1739130632520,-150.0,9.556e-05,2]
[352472200,1739130632529,-150.0,9.591e-05,2]
[352472201,1739130632539,-150.0,9.6e-05,2]
[352472202,1739130632550,-150.0,9.636e-05,2]
[352472203,1739130632560,-150.0,9.667e-05,2]
[352472204,1739130632570,-2800.0,9.674e-05,2]
[352472205,1739130632580,-2700.0,9.674e-05,2]
[352472206,1739130632589,-1100.0,9.674e-05,2]
[352472207,1739130632599,-150.0,9.682e-05,2]
[352472208,1739130632608,-300.0,9.7e-05,3]
[352472209,1739130632617,-150.0,9.727e-05,2]
[352472210,1739130632627,-150.0,9.773e-05,2]
[352472212,1739130632636,-150.0,9.778e-05,2]
[352472213,1739130632645,-215.22,9.788e-05,2]
[352472214,1739130632655,-150.0,9.8e-05,2]
[352472215,1739130632666,-700.0,9.8e-05,3]
[352472216,1739130632675,-150.0,9.818e-05,2]
[352472217,1739130632685,-150.0,9.864e-05,2]
[352472219,1739130632696,-150.0,9.889e-05,2]
[352472221,1739130632705,-1000.0,9.9e-05,3]
[352472223,1739130632714,-150.0,9.909e-05,2]
[352472225,1739130632723,-150.0,9.955e-05,2]
[352472227,1739130632732,-30746.34537945,9.973e-05,2]
[352472230,1739130632756,-820.15295765,9.973e-05,2]
[352472233,1739130632777,-13956.5016629,9.973e-05,2]
[352472235,1739130632786,-500.0,9.973e-05,2]
[352472237,1739130632795,-155.18594339,9.973e-05,2]
[352472239,1739130632805,-284.19105783,9.973e-05,2]
[352472241,1739130632814,-3098.499,9.973e-05,2]
[352472243,1739130632823,-175.749,9.973e-05,2]
[352472245,1739130632833,-234.33,9.977e-05,2]
[352472247,1739130632842,-258.46856333,9.998e-05,2]
[352472249,1739130632851,-500.0,9.998e-05,2]
[352472250,1739130632860,-500.0,9.998e-05,2]
[352472252,1739130632870,-365.98592846,9.998e-05,2]
[352472254,1739130632880,-190.38292148,9.998e-05,2]
[352472256,1739130632893,-439.00214446,9.998e-05,2]
[352472258,1739130632903,-500.0,9.998e-05,2]
[352472260,1739130632915,-500.0,9.998e-05,2]
[352472262,1739130632925,-500.0,9.998e-05,2]
[352472264,1739130632936,-500.0,9.998e-05,2]
[352472266,1739130632944,-500.0,9.998e-05,2]
[352472268,1739130632953,-500.0,9.998e-05,2]
[352472270,1739130632962,-500.0,9.998e-05,2]
[352472272,1739130632971,-500.0,9.998e-05,2]
[352472274,1739130632981,-500.0,9.998e-05,2]
[352472276,1739130632990,-500.0,9.998e-05,2]
[352472278,1739130632999,-500.0,9.998e-05,2]
[352472279,1739130633008,-500.0,9.998e-05,2]
[352472280,1739130633017,-500.0,9.998e-05,2]
[352472281,1739130633026,-500.0,9.998e-05,2]
[352472282,1739130633035,-451.51212986,9.998e-05,2]
[352472283,1739130633045,-500.0,9.998e-05,2]
[352472284,1739130633055,-500.0,9.998e-05,2]
[352472285,1739130633064,-500.0,9.998e-05,2]
[352472286,1739130633074,-499.99999999,9.998e-05,2]
[352472287,1739130633084,-500.0,9.998e-05,2]
[352472288,1739130633095,-500.0,9.998e-05,2]
[352472289,1739130633104,-500.0,9.998e-05,2]
[352472290,1739130633114,-381.98,9.998e-05,2]
[352472291,1739130633123,-500.0,9.998e-05,2]
[352472292,1739130633133,-500.0,9.998e-05,2]
[352472294,1739130633142,-500.0,9.998e-05,2]
[352472297,1739130633152,-500.0,9.998e-05,2]
[352472298,1739130633163,-500.0,9.998e-05,2]
[352472300,1739130633173,-297.1,9.998e-05,2]
[352472302,1739130633183,-500.0,9.998e-05,2]
[352472305,1739130633192,-642.43,9.998e-05,2]
[352472307,1739130633202,-500.0,9.998e-05,2]
[352472309,1739130633213,-500.0,9.998e-05,2]
[352472311,1739130633223,-528.97,9.998e-05,2]
[352472313,1739130633233,-500.0,9.998e-05,2]
[352472315,1739130633243,-500.0,9.998e-05,2]
[352472317,1739130633253,-500.0,9.998e-05,2]
[352472319,1739130633262,-500.0,9.998e-05,2]
[352472321,1739130633272,-500.0,9.998e-05,2]
[352472322,1739130633281,-500.0,9.998e-05,2]
[352472324,1739130633291,-500.0,9.998e-05,2]
[352472326,1739130633301,-574.86,9.998e-05,2]
[352472328,1739130633311,-406.02686,9.998e-05,2]
[352472330,1739130633321,-500.0,9.998e-05,2]
[352472332,1739130633330,-500.0,9.998e-05,2]
[352472334,1739130633339,-500.0,9.998e-05,2]
[352472336,1739130633349,-500.0,9.998e-05,2]
[352472338,1739130633359,-500.0,9.998e-05,2]
[352472340,1739130633368,-500.0,9.998e-05,2]
[352472343,1739130633378,-500.0,9.998e-05,2]
[352472344,1739130633387,-500.0,9.999e-05,2]
[352472346,1739130633397,-422.79254318,9.999e-05,2]
[352472348,1739130633407,-641.94,9.999e-05,2]
[352472350,1739130633420,-500.0,9.999e-05,2]
[352472352,1739130633429,-500.0,9.999e-05,2]
[352472354,1739130633439,-500.0,9.999e-05,2]
[352472356,1739130633448,-500.0,9.999e-05,2]
[352472358,1739130633458,-500.0,9.999e-05,2]
[352472361,1739130633467,-500.0,9.999e-05,2]
[352472363,1739130633477,-500.0,9.999e-05,2]
[352472365,1739130633486,-500.0,9.999e-05,2]
[352472367,1739130633496,-500.0,9.999e-05,2]
[352472369,1739130633506,-500.0,9.999e-05,2]
[352472370,1739130633515,-500.0,9.999e-05,2]
[352472372,1739130633525,-500.0,9.999e-05,2]
[352472374,1739130633534,-500.0,9.999e-05,2]
[352472376,1739130633544,-500.0,9.999e-05,2]
[352472378,1739130633553,-500.0,9.999e-05,2]
[352472380,1739130633562,-500.0,9.999e-05,2]
[352472382,1739130633571,-500.0,9.999e-05,2]
[352472384,1739130633580,-500.0,9.999e-05,2]